Cogmind - Beta 14 @@@ ROGUE MODE // 2024.10.19 @ 20:17:30 Player: MPD78 Result: Destroyed by Y-45 Defender with Heavy Assault Rifle Performance ------------- Evolutions (2) 1000 Regions Visited (5) 1000 Robots Destroyed (42) 210 Value Destroyed (1111) 1111 Prototype IDs (0) 0 Alien Tech Used (0) 0 Bonus (89) 89 TOTAL SCORE: 3410 Bonus ------- High Alert Combat Kills 89 Cogmind --------- Core Integrity 0/550 Matter 500/500 Energy 99/100 System Corruption 0% Temperature Cool (9) Movement Core (100) Ox1 Location -8/Materials Parts ------- > --- POWER (2) -------- (None) > --- PROPULSION (3) --- (None) > --- UTILITY (3) ------ High-capacity Matter Pod > --- WEAPON (3) ------- (None) > --- INVENTORY (5) ---- Medium Storage Unit Peak State ------------ > --- POWER ------------ Ion Engine > --- PROPULSION ------- Light Treads Light Treads > --- UTILITY ---------- High-capacity Matter Pod > --- WEAPON ----------- Assault Rifle EMP Blaster Rocket Launcher > --- INVENTORY -------- Light Ion Engine Large Matter Pod Small Laser Grenade Launcher [Rating: 9] Favorites ----------- Power Light Ion Engine Engine Light Ion Engine Propulsion Light Treads Treads Light Treads Utility High-capacity Matter Pod Device Terrain Scanner Storage High-capacity Matter Pod Weapon Assault Rifle Energy Gun Small Laser Energy Cannon Light EM Pulse Cannon Ballistic Gun Assault Rifle Launcher Rocket Launcher Build | -11 -10 -10 -9 -9 -8 ------- Run | Yrd Mat Min Mat Sto Mat Slots Evolved 4 | . . . 2 . 2 Power 1 | . . . 1 . . Propulsion 1 | . . . . . 1 Utility 1 | . . . . . 1 Weapon 1 | . . . 1 . . Parts Attached 18 | 5 4 1 2 6 . Power 3 | 1 1 . . 1 . Engine 3 | 1 1 . . 1 . Core . | . . . . . . Reactor . | . . . . . . Propulsion 4 | 2 . . . 2 . Treads 4 | 2 . . . 2 . Leg . | . . . . . . Wheel . | . . . . . . Hover . | . . . . . . Flight . | . . . . . . Utility 3 | . 2 . . 1 . Device 1 | . 1 . . . . Storage 2 | . 1 . . 1 . Processor . | . . . . . . Hackware . | . . . . . . Protection . | . . . . . . Artifact . | . . . . . . Weapon 8 | 2 1 1 2 2 . Energy Gun 3 | 1 1 . . 1 . Energy Cannon 1 | . . . . 1 . Ballistic Gun 1 | 1 . . . . . Ballistic Cannon . | . . . . . . Launcher 3 | . . 1 2 . . Special Weapon . | . . . . . . Impact Weapon . | . . . . . . Slashing Weapon . | . . . . . . Piercing Weapon . | . . . . . . Special Melee Weapon . | . . . . . . Unidentified Prototypes . | . . . . . . Parts Lost 12 | . . 1 . 6 5 Power 2 | . . . . 1 1 Propulsion 3 | . . . . 2 1 Utility 2 | . . 1 . . 1 Weapon 5 | . . . . 3 2 Highest Loss Streak 5 | . . 1 . 2 5 To Critical Strikes . | . . . . . . Average Slot Usage (%) 70 | . 82 97 77 63 34 Engine 11 | . 14 14 11 10 4 Treads 17 | . 28 28 22 13 5 Device 2 | . 7 11 . . . Storage 12 | . 3 14 11 15 15 Energy Gun 6 | . 14 9 . 5 4 Energy Cannon 2 | . . . . 4 4 Ballistic Gun 8 | . 14 14 11 5 . Launcher 7 | . . 4 22 8 . Peak Build Rating 9 | 5 7 8 9 9 7 Average Rating 6 | 4 5 7 8 7 4 On Entrance 5 | . 5 7 7 9 7 Naked Turns . | . . . . . . Heaviest Build 19 | 6 14 16 19 19 15 Greatest Support 40 | 40 40 40 40 40 20 Greatest Overweight (x) 4 | . . . . 4 2 Average Overweight (x) . | . . . . . . Largest Inventory Capacity 5 | 5 5 5 5 5 5 Average Capacity 5 | 5 5 5 5 5 5 Most Carried 5 | 3 5 5 5 5 1 Average Carried 2 | 1 3 4 3 1 1 Final Capacity 5 | 5 5 5 5 5 5 Final Carried 4 | 2 4 4 4 1 1 Class Distribution -------------------- 77% | Mutant 22% | Gunner Dominant Class ---------------- Mutant | -10/Materials Mutant | -10/Mines Gunner | -9/Materials Mutant | -9/Storage Mutant | -8/Materials Resources | -11 -10 -10 -9 -9 -8 ----------- Run | Yrd Mat Min Mat Sto Mat Matter Collected 1067 | 241 189 29 49 548 11 Remotely . | . . . . . . Salvage Created 1338 | . 210 29 84 983 32 Parts 70 | . 11 5 3 51 . Haulers Intercepted 3 | . . . . 3 . Recyclers Shooed . | . . . . . . Parts Field Recycled . | . . . . . . Retrieved Matter . | . . . . . . Parts Self-Destructed . | . . . . . . Prevented . | . . . . . . Kills | -11 -10 -10 -9 -9 -8 ------- Run | Yrd Mat Min Mat Sto Mat Combat Hostiles Destroyed 27 | . 4 3 2 18 . Guns 9 | . 4 . . 5 . Cannons 2 | . . . . 2 . AOE 16 | . . 3 2 11 . Classes Destroyed 9 | . 2 2 1 4 . Worker 6 | . . 2 . 4 . Hauler 3 | . . . . 3 . Recycler 2 | . . . . 2 . Watcher 4 | . 1 . . 2 1 Swarmer 3 | . . 3 . . . Grunt 18 | . 4 . 1 13 . Brawler 1 | . . . 1 . . Duelist 1 | . . . . 1 . Sentry 4 | . . . . 4 . Best Kill Streak 7 | . 2 5 2 7 1 Combat Bots Only 5 | . 2 3 2 5 . Max Kills in Single Turn 5 | . 1 5 2 2 1 Gunslinging . | . . . . . . Exploded 3 | . . 3 2 2 . Melee . | . . . . . . Uniques/NPCs Destroyed . | . . . . . . Combat | -11 -10 -10 -9 -9 -8 -------- Run | Yrd Mat Min Mat Sto Mat Hostile Shots Fired 143 | . 19 6 2 40 76 Missed 42 | . 9 . 1 13 19 Damage Taken 2057 | . 145 95 34 936 847 Core 881 | . 15 . 8 303 555 Absorbed by Shields . | . . . . . . Core Remaining (%) 72 | 100 . 94 . 22 . Volleys Fired 70 | . 19 3 1 41 6 Largest 3 | . 2 2 3 3 2 Hottest 96 | . 60 60 86 96 96 Shots Fired 145 | . 38 6 3 90 8 Gun 92 | . 38 4 1 47 2 Cannon 16 | . . . . 10 6 Launcher 37 | . . 2 2 33 . Special . | . . . . . . Kinetic 51 | . 19 3 1 28 . Thermal 27 | . 6 . . 19 2 Explosive 27 | . . 2 1 24 . Electromagnetic 40 | . 13 1 1 19 6 Robot Hit Streak 18 | . 6 1 2 18 4 Robot Miss Streak 5 | . 3 5 1 2 2 Penetration Max . | . . . . . . Secondary Targets 1 | . 1 . . . . Max Gunslinging Chain 1 | . 1 . . . . Shots Hit Robots 83 | . 20 1 2 56 4 Core Hits 74 | . 9 6 4 54 1 Critical Kills . | . . . . . . Critical Parts Destroyed 1 | . . . . 1 . Critical Strikes 1 | . . . . 1 . Destroy 1 | . . . . 1 . Melee Attacks . | . . . . . . Impact . | . . . . . . Slashing . | . . . . . . Piercing . | . . . . . . Sneak Attacks . | . . . . . . Combat Hostiles . | . . . . . . Follow-up Attacks . | . . . . . . Damage Inflicted 3048 | . 375 194 92 2243 144 Guns 709 | . 296 12 . 389 12 Cannons 226 | . . . . 130 96 Explosions 2113 | . 79 182 92 1724 36 Melee . | . . . . . . Ramming . | . . . . . . Kinetic 410 | . 115 12 . 283 . Thermal 430 | . 119 . . 263 48 Explosive 1566 | . . 182 64 1320 . Electromagnetic 642 | . 141 . 28 377 96 Impact . | . . . . . . Slashing . | . . . . . . Piercing . | . . . . . . Highest Corruption 9 | . . . . 9 . Average Corruption 7 | . . . . 7 . Corruption Purged . | . . . . . . Corruption Blocked . | . . . . . . Effects 22 | . . . . 22 . Message Errors 2 | . . . . 2 . Matter Fused 7 | . . . . 7 . Heat Flow Errors 5 | . . . . 5 . Energy Discharges 1 | . . . . 1 . Parts Fused 1 | . . . . 1 . Data Loss (minor) 3 | . . . . 3 . Misfires 2 | . . . . 2 . Alerts 1 | . . . . 1 . Overload Shots . | . . . . . . Overflow Damage 42 | . . 4 . 33 5 Projectiles 5 | . . . . . 5 Explosions 37 | . . 4 . 33 . Melee . | . . . . . . Knockbacks . | . . . . . . Impact . | . . . . . . Kinetic . | . . . . . . Secondary . | . . . . . . Self-Inflicted Damage 216 | . . 50 25 141 . Shots 6 | . . 2 1 3 . Rammed . | . . . . . . Targets Rammed . | . . . . . . Kicked . | . . . . . . Crushed . | . . . . . . Highest Temperature 268 | . 66 . 21 268 63 Average Temperature 61 | . 29 . 16 78 18 Received Heat Transfer 594 | . 99 . 6 138 351 Siege Activations . | . . . . . . Robots Corrupted . | . . . . . . Combat Hostiles . | . . . . . . Parts Fried 2 | . . . . 1 1 Impact Corruptions . | . . . . . . Robots Melted . | . . . . . . Combat Hostiles . | . . . . . . Parts Melted 1 | . . . . 1 . Heat Transferred 625 | . 200 . . 350 75 Parts Sabotaged . | . . . . . . Parts Stolen . | . . . . . . Parts Stripped . | . . . . . . Power Chain Reactions 7 | . 2 . . 4 1 Alert | -11 -10 -10 -9 -9 -8 ------- Run | Yrd Mat Min Mat Sto Mat Peak Influence 675 | . 135 139 114 675 281 Initial 269 | . . 52 53 48 269 Average 261 | . 61 67 62 458 255 Maximum Alert Level 2 | . . . . 2 1 Low Security (%) 49 | 100 100 100 100 10 . Level 1 18 | . . . . 23 100 Level 2 32 | . . . . 66 . Level 3 . | . . . . . . Level 4 . | . . . . . . Level 5 . | . . . . . . High Security . | . . . . . . Max Security . | . . . . . . Squads Dispatched 4 | . 1 . . 3 . Investigation 1 | . . . . 1 . Extermination . | . . . . . . Reinforcement 3 | . 1 . . 2 . Assault . | . . . . . . Garrison . | . . . . . . Intercept . | . . . . . . Searches Triggered . | . . . . . . Construction Impeded 1 | . . . . 1 . Haulers Reinforced . | . . . . . . Active Scanning Responses . | . . . . . . Cargo Convoy Interrupts . | . . . . . . Stealth | -11 -10 -10 -9 -9 -8 --------- Run | Yrd Mat Min Mat Sto Mat Distress Signals 3 | . . . . 2 1 Communications Jammed . | . . . . . . Distress Signals . | . . . . . . Times Spotted 34 | . 6 3 2 20 3 Peak Tracking Total 3 | . 2 3 2 3 3 Tactical Retreats . | . . . . . . Traps | -11 -10 -10 -9 -9 -8 ------- Run | Yrd Mat Min Mat Sto Mat Traps Triggered 6 | . . . . 6 . Indirectly 2 | . . . . 2 . Trap Hack Attempts . | . . . . . . Triggered . | . . . . . . Disarmed . | . . . . . . Reprogrammed . | . . . . . . Reused . | . . . . . . Traps Extracted . | . . . . . . Installed . | . . . . . . Triggered . | . . . . . . Machines | -11 -10 -10 -9 -9 -8 ---------- Run | Yrd Mat Min Mat Sto Mat Machines Disabled 7 | . . . . 7 . Max in Single Turn 3 | . . . . 3 . Machines Repaired . | . . . . . . Machines Dismantled . | . . . . . . Machines Sabotaged . | . . . . . . Overloaded Fab Kills . | . . . . . . Hacking | -11 -10 -10 -9 -9 -8 --------- Run | Yrd Mat Min Mat Sto Mat Machines Accessed 3 | . 2 . . 1 . Terminals 2 | . 2 . . . . Fabricators . | . . . . . . Repair Stations . | . . . . . . Recycling Units 1 | . . . . 1 . Scanalyzers . | . . . . . . Garrison Access . | . . . . . . Total Hacks 8 | . 5 . . 3 . Successful 8 | . 5 . . 3 . Failed . | . . . . . . Catastrophic . | . . . . . . Database Lockouts . | . . . . . . Manual . | . . . . . . Terminals 5 | . 5 . . . . Fabricators . | . . . . . . Repair Stations . | . . . . . . Recycling Units 3 | . . . . 3 . Scanalyzers . | . . . . . . Garrison Access . | . . . . . . Terminal Hacks 5 | . 5 . . . . Record 4 | . 4 . . . . Alert Level 1 | . 1 . . . . Fabricator Hacks . | . . . . . . Repair Station Hacks . | . . . . . . Recycling Unit Hacks 3 | . . . . 3 . Recycle Component 1 | . . . . 1 . Process 1 | . . . . 1 . Report Inventory 1 | . . . . 1 . Scanalyzer . | . . . . . . Garrison Access Hacks . | . . . . . . Unauthorized Hacks . | . . . . . . Terminals . | . . . . . . Fabricators . | . . . . . . Repair Stations . | . . . . . . Recycling Units . | . . . . . . Scanalyzers . | . . . . . . Garrison Access . | . . . . . . Data Cores Recovered . | . . . . . . Used . | . . . . . . Hacking Detections 2 | . 1 . . 1 . Full Trace Events 2 | . 1 . . 1 . Feedback Events . | . . . . . . Feedback Blocked . | . . . . . . Robot Schematics Acquired . | . . . . . . Robots Built . | . . . . . . Authchips . | . . . . . . Time . | . . . . . . Total Robot Build Rating . | . . . . . . Part Schematics Acquired . | . . . . . . Parts Built . | . . . . . . Authchips . | . . . . . . Time . | . . . . . . Total Part Build Rating . | . . . . . . Parts Repaired . | . . . . . . Time . | . . . . . . Parts Recycled 1 | . . . . 1 . Recycled Matter 23 | . . . . 23 . Retrieved Matter . | . . . . . . Retrieved Components . | . . . . . . Parts Scanalyzed . | . . . . . . Part Schematics Acquired . | . . . . . . Parts Damaged . | . . . . . . Bothacking | -11 -10 -10 -9 -9 -8 ------------ Run | Yrd Mat Min Mat Sto Mat Used RIF Installer . | . . . . . . Robots Hacked . | . . . . . . Non-combat . | . . . . . . Combat . | . . . . . . Robot Hacks Applied . | . . . . . . Relay Couplers Released . | . . . . . . Fabnet Peak Effective % . | . . . . . . Robots Rewired . | . . . . . . Allies Hacked . | . . . . . . Hacks Repelled . | . . . . . . Allies | -11 -10 -10 -9 -9 -8 -------- Run | Yrd Mat Min Mat Sto Mat Total Allies . | . . . . . . Largest Group . | . . . . . . Highest-Rated Group . | . . . . . . Highest-Rated Ally . | . . . . . . Total Orders . | . . . . . . Ally Attacks . | . . . . . . Total Damage . | . . . . . . Kills . | . . . . . . Allies Corrupted . | . . . . . . Allies Melted . | . . . . . . Intel | -11 -10 -10 -9 -9 -8 ------- Run | Yrd Mat Min Mat Sto Mat Robot Analysis Total . | . . . . . . Derelict Logs Recovered 1 | . . 1 . . . Drone Launches . | . . . . . . Drone Recoveries . | . . . . . . Exploration | -11 -10 -10 -9 -9 -8 ------------- Run | Yrd Mat Min Mat Sto Mat Turns Passed 1657 | 126 311 145 162 796 117 Spaces Moved 902 | 77 153 84 98 412 78 Core 63 | 11 . . . 9 43 Treads 839 | 66 153 84 98 403 35 Legs . | . . . . . . Wheels . | . . . . . . Hover . | . . . . . . Flight . | . . . . . . Fastest Speed 50 | 50 160 160 160 160 100 Average Speed 157 | 144 160 160 160 161 132 Slowest Speed 250 | 160 160 160 160 250 160 Overloaded Moves . | . . . . . . Propulsion Burnouts . | . . . . . . Robots Hopped . | . . . . . . Cave-ins Triggered 1 | . . . . 1 . Exploration Rate (%) 24 | 5 25 26 12 71 5 Regions Visited 5 Branch Regions 2 Pre-discovered Areas 1 | . . 1 . . . Known Exits Taken . | . . . . . . Unknown Exits Taken 5 | 1 1 1 1 1 . Scrap Searched . | . . . . . . Spaces Dug . | . . . . . . Terrain Destroyed 210 | . 3 20 9 171 7 Melee . | . . . . . . Projectile . | . . . . . . AOE 210 | . 3 20 9 171 7 Terrain Rammed . | . . . . . . Walls Destroyed . | . . . . . . Machines Disabled . | . . . . . . Actions | -11 -10 -10 -9 -9 -8 --------- Run | Yrd Mat Min Mat Sto Mat Total 1012 | 93 182 89 102 462 84 Wait 3 | 3 . . . . . Move 897 | 76 152 83 97 411 78 Hop . | . . . . . . Pick Up 19 | 8 5 1 1 4 . Fast Attach . | . . . . . . Attach 17 | 5 3 1 2 6 . Detach 2 | . 1 . 1 . . Swap 1 | . 1 . . . . Drop 3 | 1 1 1 . . . Fire 70 | . 19 3 1 41 6 Melee . | . . . . . . Ram . | . . . . . . Kick . | . . . . . . Crush . | . . . . . . Escape Stasis . | . . . . . . Rewire . | . . . . . . Trap . | . . . . . . Miscellaneous . | . . . . . . Route ------- -11/Scrapyard -10/Materials -10/Mines -9/Materials -9/Storage -8/Materials History --------- Turn | Location | Event 20 | -11/Scrapyard | Discovered new exit (range 15) 127 | -11/Scrapyard | Entered Materials 317 | -10/Materials | Build established: Mutant 405 | -10/Materials | Discovered new exit (range 16) 438 | -10/Materials | Entered Mines 489 | -10/Mines | Received a Rocket Launcher from a helpful Derelict 542 | -10/Mines | Discovered new exit (range 10) 583 | -10/Mines | Entered Materials 583 | -9/Materials | Evolved 2 slots: Power x1, Weapon x1 725 | -9/Materials | Discovered new exit (range 14) 745 | -9/Materials | Entered Storage 881 | -9/Storage | Build established: Gunner 957 | -9/Storage | Crushed by falling debris 1011 | -9/Storage | Core integrity fell below 50% 1277 | -9/Storage | Build established: Mutant 1516 | -9/Storage | Discovered new exit (range 16) 1541 | -9/Storage | Entered Materials 1541 | -8/Materials | Evolved 2 slots: Propulsion x1, Utility x1 1629 | -8/Materials | Core integrity fell below 50% 1653 | -8/Materials | Core integrity fell below 20% 1656 | -8/Materials | Lost 5 parts (1p1n1u2w) 1658 | -8/Materials | Destroyed by Y-45 Defender with Heavy Assault Rifle Last Messages --------------- 01581_ Imp. Sensor Array fried. 01581_ W-25 Informer destroyed. 01589_ Critical hit (Burn: +37). 01598_ Sml. Laser destroyed. 01598_ Lgt. Ion Engine destroyed. 01601_ U-05 Engineer destroyed. 01604_ Lgt. EM Pulse Cannon destroyed. 01604_ Critical hit (Burn: +37). 01605_ Acquired 11 matter. 01610_ Lgt. Treads destroyed. 01613_ Critical hit (Burn: +37). 01619_ R-06 Scavenger collects Wheel. 01622_ R-06 Scavenger collects Structural Scanner. 01625_ Lrg. Matter Pod destroyed. 01625_ R-06 Scavenger collects Wheel. 01627_ R-06 Scavenger collects Lgt. Ion Engine. 01629_ R-06 Scavenger collects Welding Torch. 01630_ R-06 Scavenger collects Terrain Scanner. 01633_ Critical hit (Burn: +37). Map ----- +----------------------------------------------------+ | ?????????????????????????????????????????????????? | | ?????????????????????????????????????????????????? | | ?????????????????????????????????????????????????? | | ?????????????????????????????????????????????????? | | ?????????????????????????????????????????????????? | | ?????????????????????????????????????????????????? | | ?????????????????????????????????????????????????? | | ?????????????????????????????????????????????????? | | ?????????????????????????????????????????????????? | | ?????????????????????????????????????????????????? | | ?????????????????????????????????????????????????? | | ?????????????????????????????????????????????????? | | ?????????????????????????????????????????????????? | | ?????????????????????????????????????????????????? | | ?????????????????????????????????????????????????? | | ?????????????????????????????????????????????????? | | ?????????????????????????????????????????????????? | | ?????????????????????????????????????????????????? | | ?????????????????????????????????????????????????? | | ?????????????????????????????????????????????????? | | ??????? ?????????????????????????????????????????? | | ???????? ???????????????????????????????????????? | | ?????????# ?#####???????????????????????????????? | | ????????## #" # ?????????#######???????????????? | | ????????# ;;;;########## #???????????????? | | ????????# % @ #???????????????? | | ????????# Y #???????????????? | | ????????# #???????????????? | | ????????# ##########;### #???????????????? | | ????????####?????????? ??##Y ##???????????????? | | ???????????????????? ! "???# #????????????????? | | ?????????????????? ""???# #????????????????? | | ?????????????????#!! ""???# #????????????????? | | ?????????????????#!! ???# #????????????????? | | ?????????????????# ?????# #????????????????? | | ?????????????????# ?????# #????????????????? | | ????????????????? ??????# #????????????????? | | ?????????????????####???????# ###??????????????? | | ????????????????????????????# # #??????????????? | | ????????????????????????????# #??????????????? | | ????????????????????????????# # #??????????????? | | ????????????????????????????# ###??????????????? | | ????????????????????????????# #????????????????? | | ????????????????????????????# #????????????????? | | ????????????????????????????# #????????????????? | | ????????????????????????????# #????????????????? | | ????????????????????????????# #????????????????? | | ????????????????????????????# #????????????????? | | ????????????????????????????# #????????????????? | | ????????????????????????????# #????????????????? | +----------------------------------------------------+ Best States ------------- Heat Dissipation 31 Energy Generation 10 Energy Capacity 250 Matter Stores 502 Matter Capacity 650 Sight Range 16 Terrain Scan Range 14 Terrain Scan Density 10 Evasion (%) 50 Recoil Reduction 2 Item Schematics ----------------- None Robot Schematics ------------------ None Fabricated ------------ Nothing Alien Tech Used ----------------- None Achievements -------------- Maybe Next Time I'll Detach My Launcher Unlikely Earthworm Challenges ------------ None Game ------ Seed SingularityActiveRipteeth Manual? 0 Play Time 00:25:15 Cumulative 4.0 hours Start 2024.10.19 @ 19:52:27 End 2024.10.19 @ 20:17:30 Sessions 1 Manual Loads 0 Difficulty Rogue Special Mode None Game No. 12 Rogue 12 Adventurer 0 Explorer 0 Win Type - Total 0 Types 0/0/0/0/0/0/0/0/0 Lore% 4 Gallery% 7 Achievement% 9 Wizard Run 0 Options --------- Layout 1 ASCII 0 Keyboard 0 Movement Mouse Keybinds 0 Fullscreen 1 Font 24/Smallcaps Map View 50x35 Zoom Use 0% Tactical HUD 1 Map Filters NONE Filters NONE Steam 1 RUN: 8abb27ac-96a6-41b9-8037-b849070231d0